Cogmind - Beta 9.2 @@@ ROGUE MODE // 2019.11.26 @ 13:08:36 Player: KernelPanic Result: Destroyed by as-50776 with Assembled Heavy Rifle Performance ------------- Evolutions (0) 0 Regions Visited (2) 400 Robots Destroyed (3) 15 Value Destroyed (30) 30 Prototype IDs (0) 0 Alien Tech Used (0) 0 Bonus (0) 0 TOTAL SCORE: 445 Bonus ------- None Cogmind --------- Core Integrity 0/250 Matter 251/300 Energy 99/100 System Corruption 0% Temperature Cool (0) Movement Core (350) Ox6 Location -10/Mines Parts ------- > --- POWER (1) -------- (None) > --- PROPULSION (2) --- (None) > --- UTILITY (2) ------ Small Storage Unit Large Storage Unit > --- WEAPON (2) ------- (None) > --- INVENTORY (12) --- Ion Engine Improved Signal Interpreter Improved Signal Interpreter Small Laser Light Assault Rifle Peak State ------------ > --- POWER ------------ Light Ion Engine > --- PROPULSION ------- Wheel Compact Wheel > --- UTILITY ---------- Small Storage Unit Large Storage Unit > --- WEAPON ----------- Medium Laser Light Assault Rifle > --- INVENTORY -------- Ion Engine Light Treads Light Treads Aluminum Leg Aluminum Leg Improved Signal Interpreter Small Laser Maul [Rating: 8] Favorites ----------- Power Light Ion Engine Engine Light Ion Engine Propulsion Compact Wheel Leg Aluminum Leg Wheel Compact Wheel Utility Small Storage Unit Storage Small Storage Unit Weapon Medium Laser Energy Gun Medium Laser Ballistic Gun Light Assault Rifle Launcher Grenade Launcher Impact Weapon Maul Build | -11 -10 -10 ------- Run | Scr Mat Min Slots Evolved . | . . . Power . | . . . Propulsion . | . . . Utility . | . . . Weapon . | . . . Parts Attached 6 | . 3 3 Power . | . . . Engine . | . . . Core . | . . . Reactor . | . . . Propulsion 2 | . 2 . Treads . | . . . Leg . | . . . Wheel 2 | . 2 . Hover . | . . . Flight . | . . . Utility 1 | . 1 . Device . | . . . Storage 1 | . 1 . Processor . | . . . Hackware . | . . . Protection . | . . . Artifact . | . . . Weapon 3 | . . 3 Energy Gun 1 | . . 1 Energy Cannon . | . . . Ballistic Gun . | . . . Ballistic Cannon . | . . . Launcher 1 | . . 1 Special Weapon . | . . . Impact Weapon 1 | . . 1 Slashing Weapon . | . . . Piercing Weapon . | . . . Special Melee Weapon . | . . . Unidentified Prototypes . | . . . Parts Lost 6 | . . 6 Power 1 | . . 1 Propulsion 2 | . . 2 Utility . | . . . Weapon 3 | . . 3 Highest Loss Streak 5 | . . 5 Average Slot Usage (%) 87 | . 99 72 Engine 10 | . 14 6 Wheel 24 | . 26 21 Storage 27 | . 27 28 Energy Gun 10 | . 14 6 Ballistic Gun 8 | . 14 2 Launcher 1 | . . 4 Naked Turns . | . . . Heaviest Build 29 | 10 26 29 Greatest Support 26 | 20 26 26 Greatest Overweight (x) 6 | . . 6 Average Overweight (x) . | . . . Largest Inventory Capacity 12 | 6 12 12 Average Capacity 11 | 6 11 12 Most Carried 8 | 6 8 6 Average Carried 5 | 6 5 5 Final Capacity 12 | 6 12 12 Final Carried 6 | 6 5 5 Class Distribution -------------------- 100% | Mutant Dominant Class ---------------- Mutant | -10/Materials Mutant | -10/Mines Resources | -11 -10 -10 ----------- Run | Scr Mat Min Matter Collected 192 | 179 . 13 Remotely . | . . . Salvage Created 48 | . 48 . Parts 8 | . 8 . Haulers Intercepted . | . . . Recyclers Shooed . | . . . Parts Field Recycled . | . . . Retrieved Matter . | . . . Parts Self-Destructed . | . . . Prevented . | . . . Kills | -11 -10 -10 ------- Run | Scr Mat Min Combat Hostiles Destroyed 3 | . 3 . Guns 3 | . 3 . Classes Destroyed 1 | . 1 . Swarmer 3 | . 3 . Best Kill Streak 3 | . 3 . Combat Bots Only 3 | . 3 . Max Kills in Single Turn 1 | . 1 . Gunslinging . | . . . Exploded . | . . . Melee . | . . . Uniques/NPCs Destroyed . | . . . Combat | -11 -10 -10 -------- Run | Scr Mat Min Damage Taken 773 | . 116 657 Core 258 | . 9 249 Absorbed by Shields . | . . . Core Remaining (%) 100 | 100 . . Volleys Fired 14 | . 11 3 Largest 2 | . 2 1 Hottest 70 | . 70 50 Shots Fired 25 | . 22 3 Gun 25 | . 22 3 Cannon . | . . . Launcher . | . . . Special . | . . . Kinetic 11 | . 11 . Thermal 14 | . 11 3 Explosive . | . . . Electromagnetic . | . . . Robot Hit Streak 6 | . 6 2 Robot Miss Streak 2 | . 2 2 Penetration Max . | . . . Secondary Targets 1 | . 1 . Max Gunslinging Chain 1 | . 1 . Shots Hit Robots 23 | . 15 8 Core Hits 6 | . 4 2 Critical Hits . | . . . Critical Kills . | . . . Critical Parts Destroyed . | . . . Melee Attacks 6 | . . 6 Impact 6 | . . 6 Slashing . | . . . Piercing . | . . . Sneak Attacks . | . . . Combat Hostiles . | . . . Follow-up Attacks . | . . . Damage Inflicted 331 | . 136 195 Guns 173 | . 136 37 Cannons . | . . . Explosions . | . . . Melee 158 | . . 158 Ramming . | . . . Kinetic 47 | . 47 . Thermal 126 | . 89 37 Explosive . | . . . Electromagnetic . | . . . Impact 158 | . . 158 Slashing . | . . . Piercing . | . . . Highest Corruption . | . . . Average Corruption . | . . . Corruption Purged . | . . . Overload Shots . | . . . Overflow Damage . | . . . Projectiles . | . . . Explosions . | . . . Melee . | . . . Knockbacks 1 | . . 1 Impact 1 | . . 1 Kinetic . | . . . Secondary . | . . . Self-Inflicted Damage . | . . . Shots . | . . . Rammed . | . . . Targets Rammed . | . . . Kicked . | . . . Crushed . | . . . Highest Temperature 110 | . 110 . Average Temperature 54 | . 54 . Received Heat Transfer . | . . . Siege Activations . | . . . Robots Corrupted . | . . . Combat Hostiles . | . . . Parts Fried . | . . . Impact Corruptions . | . . . Robots Melted . | . . . Combat Hostiles . | . . . Parts Melted 1 | . 1 . Heat Transferred 370 | . 259 111 Parts Sabotaged . | . . . Parts Stolen . | . . . Parts Stripped . | . . . Power Chain Reactions . | . . . Missiles Intercepted . | . . . Alert | -11 -10 -10 ------- Run | Scr Mat Min Peak Influence 70 | . 70 42 Average Influence 18 | . 18 18 Maximum Alert Level . | . . . Low Security (%) 100 | 100 100 100 Level 1 . | . . . Level 2 . | . . . Level 3 . | . . . Level 4 . | . . . Level 5 . | . . . High Security . | . . . Max Security . | . . . Squads Dispatched . | . . . Investigation . | . . . Extermination . | . . . Reinforcement . | . . . Assault . | . . . Garrison . | . . . Intercept . | . . . Construction Impeded . | . . . Haulers Reinforced . | . . . Stealth | -11 -10 -10 --------- Run | Scr Mat Min Distress Signals . | . . . Communications Jammed . | . . . Distress Signals . | . . . Times Spotted 12 | . 4 8 Peak Tracking Total 3 | . 3 3 Tactical Retreats 2 | . . 2 Traps | -11 -10 -10 ------- Run | Scr Mat Min Traps Triggered . | . . . Indirectly . | . . . Trap Hack Attempts . | . . . Triggered . | . . . Disarmed . | . . . Reprogrammed . | . . . Reused . | . . . Traps Extracted . | . . . Installed . | . . . Triggered . | . . . Machines | -11 -10 -10 ---------- Run | Scr Mat Min Machines Disabled . | . . . Max in Single Turn . | . . . Machines Sabotaged . | . . . Garrisons Compromised . | . . . Overloaded Fab Kills . | . . . Fab Network Shutdowns . | . . . Hacking | -11 -10 -10 --------- Run | Scr Mat Min Machines Accessed . | . . . Terminals . | . . . Fabricators . | . . . Repair Stations . | . . . Recycling Units . | . . . Scanalyzers . | . . . Garrison Access . | . . . Total Hacks . | . . . Successful . | . . . Failed . | . . . Catastrophic . | . . . Database Lockouts . | . . . Manual . | . . . Terminals . | . . . Fabricators . | . . . Repair Stations . | . . . Recycling Units . | . . . Scanalyzers . | . . . Garrison Access . | . . . Terminal Hacks . | . . . Fabricator Hacks . | . . . Repair Station Hacks . | . . . Recycling Unit Hacks . | . . . Scanalyzer . | . . . Garrison Access Hacks . | . . . Unauthorized Hacks . | . . . Terminals . | . . . Fabricators . | . . . Repair Stations . | . . . Recycling Units . | . . . Scanalyzers . | . . . Garrison Access . | . . . Data Cores Recovered . | . . . Used . | . . . Hacking Detections . | . . . Full Trace Events . | . . . Feedback Events . | . . . Feedback Blocked . | . . . Robot Schematics Acquired . | . . . Robots Built . | . . . Matter . | . . . Time . | . . . Total Robot Build Rating . | . . . Part Schematics Acquired . | . . . Parts Built . | . . . Matter . | . . . Time . | . . . Total Part Build Rating . | . . . Parts Repaired . | . . . Time . | . . . Parts Recycled . | . . . Recycled Matter . | . . . Retrieved Matter . | . . . Retrieved Components . | . . . Parts Scanalyzed . | . . . Part Schematics Acquired . | . . . Parts Damaged . | . . . Bothacking | -11 -10 -10 ------------ Run | Scr Mat Min Used RIF Installer . | . . . Robots Hacked . | . . . Non-combat . | . . . Combat . | . . . Robot Hacks Applied . | . . . Relay Couplers Released . | . . . Robots Rewired . | . . . Allies Hacked . | . . . Hacks Repelled . | . . . Allies | -11 -10 -10 -------- Run | Scr Mat Min Total Allies . | . . . Largest Group . | . . . Highest-Rated Group . | . . . Highest-Rated Ally . | . . . Total Orders . | . . . Ally Attacks . | . . . Total Damage . | . . . Kills . | . . . Allies Corrupted . | . . . Allies Melted . | . . . Intel | -11 -10 -10 ------- Run | Scr Mat Min Robot Analysis Total . | . . . Derelict Logs Recovered 1 | . . 1 Drone Launches . | . . . Drone Recoveries . | . . . Exploration | -11 -10 -10 ------------- Run | Scr Mat Min Turns Passed 292 | 2 159 131 Spaces Moved 226 | 2 126 98 Core 1 | . . 1 Treads . | . . . Legs 9 | 2 7 . Wheels 216 | . 119 97 Hover . | . . . Flight . | . . . Fastest Speed 90 | 120 90 90 Average Speed 97 | 120 91 105 Slowest Speed 350 | 120 120 350 Overloaded Moves . | . . . Propulsion Burnouts . | . . . Robots Hopped . | . . . Cave-ins Triggered . | . . . Exploration Rate (%) 19 | 2 29 26 Regions Visited 2 Branch Regions 1 Pre-discovered Areas . | . . . Known Exits Taken . | . . . Unknown Exits Taken 2 | 1 1 . Scrap Searched . | . . . Spaces Dug . | . . . Terrain Destroyed . | . . . Melee . | . . . Projectile . | . . . AOE . | . . . Actions | -11 -10 -10 --------- Run | Scr Mat Min Total 264 | 1 150 113 Wait 6 | . 4 2 Move 224 | 1 125 98 Hop . | . . . Pick Up 4 | . 3 1 Fast Attach 1 | . 1 . Attach 1 | . . 1 Detach . | . . . Swap 4 | . 2 2 Drop 4 | . 4 . Fire 14 | . 11 3 Melee 6 | . . 6 Ram . | . . . Kick . | . . . Crush . | . . . Escape Stasis . | . . . Rewire . | . . . Trap . | . . . Miscellaneous . | . . . Route ------- -11/Scrapyard -10/Materials -10/Mines History --------- Turn | Location | Event 1 | -11/Scrapyard | Discovered new exit (range 1) 3 | -11/Scrapyard | Entered Materials 146 | -10/Materials | Discovered new exit (range 12) 162 | -10/Materials | Entered Mines 166 | -10/Mines | Assembled infested the area 171 | -10/Mines | Learned 4 Materials zone layouts 176 | -10/Mines | Assisted by bots powering up and referring to "LRC-V3" 231 | -10/Mines | Core integrity fell below 50% 250 | -10/Mines | Core integrity fell below 20% 273 | -10/Mines | Lost 5 parts (1p1n3w) 293 | -10/Mines | Destroyed by as-50776 with Assembled Heavy Rifle Last Messages --------------- 00232_ U-05 Engineer lays Concrete. 00232_ U-05 Engineer builds a Wall. 00232_ YI-UF0 knocked back. 00233_ The unstable cave ceiling collapses. 00233_ U-05 Engineer builds a Wall. 00234_ The unstable cave ceiling collapses. 00234_ Maul destroyed. 00235_ The unstable cave ceiling collapses. 00236_ Wheel destroyed. 00236_ YI-UF0: "KAPOW!" 00236_ U-05 Engineer destroyed. 00236_ U-05 Engineer builds a Wall. 00237_ The unstable cave ceiling collapses. 00242_ Med. Laser destroyed. 00242_ YI-UF0: "BADABOOM!" 00242_ YI-UF0 destroyed. 00243_ The unstable cave ceiling collapses. 00250_ Acquired 13 matter. 00251_ The unstable cave ceiling collapses. 00293_ Com. Wheel destroyed. Map ----- +----------------------------------------------------+ | ### #?????????????????? | | ??## # #?????????????????? | | ???## #?????????????????? | | ????## #?????????????????? | | ?????## ##?????????????????? | | # ???# ##?????????????????? | | ??# # ##?#??????????????? | | ?# # # #??????????????? | | # # #??????????????? | | ?# #??????????????? | | ?## # ##??????????????? | | ??# ?# # # #???????????????? | | ??#??# ####???????????????? | | ?????#### ######????????????????? | | ????????# ## ###??????????????? | | ???????## ######?????????? | | ???????# ## ##????????? | | # ##### #????????? | | # ####???## """ #????????? | | # #????????# """ #????????? | | #?????????# """ ##???????? | | ##??????????# aa ##??????? | | #????????????# #??????? | | ?????????????## #??????? | | ???????????????### ##??????? | | ? ??????????????????## @##???????? | | ??????????????????????# ##???????? | | ??????????????????????## ##??????? | | ???????????????????????## #??????? | | ????????????????????????# ##?????? | | ????????????????????????## #?????? | | ?????????????????????????# #?????? | | ????????????????????????## #?????? | | ???????????????????????## ##?????? | | ??????????????????????## ##??????? | | ??????????????????????# #???????? | | ??????????????????????# #???????? | | ??????????????????????# #???????? | | ??????????????????????## ##???????? | | ???????????????????????####????????? | | ???????????????????????????????????? | | ???????????????????????????????????? | | ???????????????????????????????????? | | ???????????????????????????????????? | | | | | | | | | | | | | +----------------------------------------------------+ Best States ------------- Heat Dissipation 25 Energy Generation 10 Energy Capacity 125 Matter Stores 279 Matter Capacity 300 Sight Range 16 Terrain Scan Density 10 Evasion (%) 42 Item Schematics ----------------- None Robot Schematics ------------------ None Fabricated ------------ Nothing Alien Tech Used ----------------- None Achievements -------------- None Challenges ------------ None Game ------ Seed SpreadProtonThrower Manual? 0 Play Time 00:05:56 Cumulative 109.6 hours Start 2019.11.26 @ 13:04:48 End 2019.11.26 @ 13:08:36 Sessions 1 Manual Loads 0 Difficulty Rogue Special Mode None Game No. 193 Rogue 190 Adventurer 1 Explorer 2 Win Type - Total 4 Types 4/0/0/0/0/0/0 Lore% 64 Gallery% 63 Achievement% 53 Wizard Run 0 Options --------- ASCII 0 Keyboard 1 Movement Numpad Keybinds 0 Fullscreen 2 Font 12/Smallcaps Map View 83x54 Tactical HUD 1 Map Filters NONE Filters NONE Steam X RUN: d190cc3e-7917-40d1-9a2f-e7d5a99933d0